fUSD/lending_fUSD_20250105
["ID","MTS","AMOUNT","RATE_DAILY","PERIOD"]
[347747156,1736093440921,-703.17,8.219e-05,2]
[347747157,1736093440931,-500.0,8.219e-05,2]
[347747158,1736093440940,-591.69,8.219e-05,2]
[347747159,1736093440949,-500.0,8.219e-05,2]
[347747160,1736093440959,-1452.66,8.219e-05,2]
[347747161,1736093440968,-1135.97,8.219e-05,2]
[347747162,1736093440978,-1808.46,8.219e-05,2]
[347747163,1736093440987,-520.01,8.219e-05,2]
[347747164,1736093440997,-500.0,8.219e-05,2]
[347747165,1736093441007,-493.67787205,8.219e-05,2]
[347747166,1736093441016,-390.77396205,8.219e-05,2]
[347747167,1736093441025,-602.76,8.219e-05,2]
[347747168,1736093441035,-500.0,8.219e-05,2]
[347747169,1736093441044,-833.46,8.219e-05,2]
[347747170,1736093441053,-500.0,8.219e-05,2]
[347747171,1736093441062,-500.0,8.219e-05,2]
[347747172,1736093441071,-618.53,8.219e-05,2]
[347747173,1736093441081,-1575.34,8.219e-05,2]
[347747174,1736093441090,-651.97,8.219e-05,2]
[347747175,1736093441100,-500.0,8.219e-05,2]
[347747176,1736093441109,-911.74,8.219e-05,2]
[347747177,1736093441119,-568.0,8.219e-05,2]
[347747178,1736093441128,-1028.15,8.219e-05,2]
[347747179,1736093441137,-721.89,8.219e-05,2]
[347747180,1736093441146,-633.58,8.219e-05,2]
[347747181,1736093441158,-3107.24,8.219e-05,2]
[347747182,1736093441168,-500.0,8.219e-05,2]
[347747183,1736093441176,-500.0,8.219e-05,2]
[347747184,1736093441185,-500.0,8.219e-05,2]
[347747185,1736093441194,-500.0,8.219e-05,2]
[347747186,1736093441203,-1378.57,8.219e-05,2]
[347747187,1736093441214,-500.0,8.219e-05,2]
[347747188,1736093441223,-500.0,8.219e-05,2]
[347747189,1736093441233,-500.0,8.219e-05,2]
[347747190,1736093441242,-675.6,8.219e-05,2]
[347747191,1736093441252,-790.0,8.219e-05,2]
[347747192,1736093441261,-500.0,8.219e-05,2]
[347747193,1736093441270,-500.0,8.219e-05,2]
[347747194,1736093441280,-500.0,8.219e-05,2]
[347747195,1736093441289,-1312.45,8.219e-05,2]
[347747196,1736093441299,-747.11,8.219e-05,2]
[347747197,1736093441308,-500.0,8.219e-05,2]
[347747198,1736093441317,-500.0,8.219e-05,2]
[347747199,1736093441327,-660.9,8.219e-05,2]
[347747200,1736093441336,-2431.88,8.219e-05,2]
[347747201,1736093441345,-741.89,8.219e-05,2]
[347747202,1736093441354,-500.0,8.219e-05,2]
[347747203,1736093441365,-998.2,8.219e-05,2]
[347747204,1736093441374,-742.57,8.219e-05,2]
[347747205,1736093441383,-950.19,8.219e-05,2]
[347747206,1736093441392,-545.49,8.219e-05,2]
[347747207,1736093441403,-851.4,8.219e-05,2]
[347747208,1736093441413,-500.0,8.219e-05,2]
[347747209,1736093441423,-1502.24,8.219e-05,2]
[347747210,1736093441432,-500.0,8.219e-05,2]
[347747211,1736093441441,-1529.57,8.219e-05,2]
[347747212,1736093441451,-829.09,8.219e-05,2]
[347747213,1736093441461,-775.67,8.219e-05,2]
[347747214,1736093441470,-643.9,8.219e-05,2]
[347747215,1736093441480,-500.0,8.219e-05,2]
[347747216,1736093441491,-1972.78,8.219e-05,2]
[347747217,1736093441501,-596.39,8.219e-05,2]
[347747218,1736093441512,-2401.07,8.219e-05,2]
[347747219,1736093441522,-376.057504,8.219e-05,2]
[347747220,1736093441532,-500.0,8.219e-05,2]
[347747221,1736093441542,-500.0,8.219e-05,2]
[347747222,1736093441552,-7216.14,8.219e-05,2]
[347747223,1736093441563,-500.0,8.219e-05,2]
[347747224,1736093441572,-4809.85,8.219e-05,2]
[347747225,1736093441582,-500.0,8.219e-05,2]
[347747226,1736093441591,-1336.17,8.219e-05,2]
[347747227,1736093441601,-4510.33,8.219e-05,2]
[347747228,1736093441610,-500.0,8.219e-05,2]
[347747229,1736093441620,-664.2,8.219e-05,2]
[347747230,1736093441629,-514.62,8.219e-05,2]
[347747231,1736093441639,-2680.26,8.219e-05,2]
[347747232,1736093441648,-500.0,8.219e-05,2]
[347747233,1736093441658,-376.812101,8.219e-05,2]
[347747234,1736093441668,-402.062172,8.219e-05,2]
[347747235,1736093441677,-897.44,8.219e-05,2]
[347747236,1736093441686,-2020.86,8.219e-05,2]
[347747237,1736093441695,-863.94,8.219e-05,2]
[347747238,1736093441705,-500.0,8.219e-05,2]
[347747239,1736093441714,-500.0,8.219e-05,2]
[347747240,1736093441723,-845.14,8.219e-05,2]
[347747241,1736093441733,-641.53,8.219e-05,2]
[347747242,1736093441742,-500.0,8.219e-05,2]
[347747243,1736093441752,-500.0,8.219e-05,2]
[347747244,1736093441761,-500.0,8.219e-05,2]
[347747245,1736093441770,-1165.06,8.219e-05,2]
[347747246,1736093441780,-898.28,8.219e-05,2]
[347747247,1736093441789,-500.0,8.219e-05,2]
[347747248,1736093441798,-500.0,8.219e-05,2]
[347747249,1736093441808,-2567.67,8.219e-05,2]
[347747250,1736093441817,-500.0,8.219e-05,2]
[347747251,1736093441827,-682.97,8.219e-05,2]
[347747252,1736093441836,-377.384262,8.219e-05,2]
[347747253,1736093441846,-402.854924,8.219e-05,2]
[347747254,1736093441855,-1978.57,8.219e-05,2]
[347747255,1736093441864,-4822.3,8.219e-05,2]
[347747256,1736093441874,-730.9,8.219e-05,2]
[347747257,1736093441882,-820.85,8.219e-05,2]
[347747258,1736093441892,-500.0,8.219e-05,2]
[347747259,1736093441901,-905.94,8.219e-05,2]
[347747260,1736093441910,-500.0,8.219e-05,2]
[347747261,1736093441919,-924.98,8.219e-05,2]
[347747262,1736093441928,-730.86,8.219e-05,2]
[347747263,1736093441937,-500.0,8.219e-05,2]
[347747264,1736093441947,-500.0,8.219e-05,2]
[347747265,1736093441956,-1979.73,8.219e-05,2]
[347747266,1736093441965,-500.0,8.219e-05,2]
[347747267,1736093441974,-500.0,8.219e-05,2]
[347747268,1736093441984,-1891.01,8.219e-05,2]
[347747269,1736093441993,-403.649579,8.219e-05,2]
[347747270,1736093442002,-377.632664,8.219e-05,2]
[347747271,1736093442011,-923.16,8.219e-05,2]
[347747272,1736093442021,-500.0,8.219e-05,2]
[347747273,1736093442030,-1008.74,8.219e-05,2]
[347747274,1736093442039,-5323.99,8.219e-05,2]
[347747275,1736093442048,-500.0,8.219e-05,2]
[347747276,1736093442057,-634.71,8.219e-05,2]
[347747277,1736093442067,-500.0,8.219e-05,2]
[347747278,1736093442076,-1030.31,8.219e-05,2]
[347747279,1736093442086,-571.24,8.219e-05,2]
[347747280,1736093442096,-6129.68,8.219e-05,2]
[347747281,1736093442106,-654.82,8.219e-05,2]
[347747282,1736093442117,-910.23,8.219e-05,2]
[347747283,1736093442128,-599.32,8.219e-05,2]
[347747284,1736093442138,-404.206485,8.219e-05,2]
[347747285,1736093442149,-3801.67,8.219e-05,2]
[347747286,1736093442161,-500.0,8.219e-05,2]
[347747287,1736093442173,-500.0,8.219e-05,2]
[347747288,1736093442184,-2105.78,8.219e-05,2]
[347747289,1736093442195,-1038.71,8.219e-05,2]
[347747290,1736093442207,-2739.97,8.219e-05,2]
[347747291,1736093442217,-209.95768826,8.219e-05,2]
[347747293,1736093442228,-500.0,8.219e-05,2]
[347747294,1736093442239,-500.0,8.219e-05,2]
[347747295,1736093442250,-1877.63,8.219e-05,2]
[347747296,1736093442261,-1306.48,8.219e-05,2]
[347747297,1736093442271,-500.0,8.219e-05,2]
[347747298,1736093442283,-700.64,8.219e-05,2]
[347747299,1736093442293,-500.0,8.219e-05,2]
[347747300,1736093442303,-1088.73,8.219e-05,2]
[347747301,1736093442313,-500.0,8.219e-05,2]
[347747302,1736093442323,-377.522457,8.219e-05,2]
[347747303,1736093442332,-4575.44,8.219e-05,2]
[347747304,1736093442340,-500.0,8.219e-05,2]
[347747305,1736093442349,-1166.76,8.219e-05,2]
[347747306,1736093442359,-500.0,8.219e-05,2]
[347747307,1736093442369,-3359.4,8.219e-05,2]
[347747308,1736093442378,-844.34,8.219e-05,2]
[347747309,1736093442388,-500.0,8.219e-05,2]
[347747310,1736093442398,-500.0,8.219e-05,2]
[347747311,1736093442409,-524.21,8.219e-05,2]
[347747312,1736093442418,-1166.37,8.219e-05,2]
[347747313,1736093442427,-502.97,8.219e-05,2]
[347747314,1736093442437,-1494.76,8.219e-05,2]
[347747316,1736093442446,-2102.36,8.219e-05,2]
[347747317,1736093442455,-1697.98,8.219e-05,2]
[347747319,1736093442465,-500.0,8.219e-05,2]
[347747320,1736093442474,-500.0,8.219e-05,2]
[347747321,1736093442485,-500.0,8.219e-05,2]
[347747323,1736093442495,-2476.3,8.219e-05,2]
[347747326,1736093442505,-500.0,8.219e-05,2]
[347747329,1736093442514,-377.105117,8.219e-05,2]
[347747330,1736093442524,-404.362946,8.219e-05,2]
[347747331,1736093442534,-500.0,8.219e-05,2]
[347747332,1736093442544,-500.0,8.219e-05,2]
[347747333,1736093442553,-707.61,8.219e-05,2]
[347747334,1736093442564,-500.0,8.219e-05,2]
[347747335,1736093442573,-2758.22,8.219e-05,2]
[347747337,1736093442582,-500.0,8.219e-05,2]
[347747339,1736093442591,-500.0,8.219e-05,2]
[347747342,1736093442799,-1004.07,8.219e-05,2]
[347747343,1736093442809,-500.0,8.219e-05,2]
[347747344,1736093442819,-500.0,8.219e-05,2]
[347747345,1736093442828,-638.23,8.219e-05,2]
[347747346,1736093442837,-500.0,8.219e-05,2]
[347747347,1736093442847,-994.13,8.219e-05,2]
[347747348,1736093442858,-540.89,8.219e-05,2]
[347747349,1736093442869,-498.77204464,8.219e-05,2]
[347747350,1736093442880,-936.98,8.219e-05,2]
[347747351,1736093442893,-500.0,8.219e-05,2]
[347747352,1736093442904,-500.0,8.219e-05,2]
[347747353,1736093442914,-500.0,8.219e-05,2]
[347747354,1736093442923,-376.50909,8.219e-05,2]
[347747355,1736093442932,-714.43,8.219e-05,2]
[347747356,1736093442941,-500.0,8.219e-05,2]
[347747357,1736093442950,-404.088734,8.219e-05,2]
[347747358,1736093442959,-576.42,8.219e-05,2]
[347747359,1736093442969,-4018.14,8.219e-05,2]
[347747360,1736093442978,-579.85,8.219e-05,2]
[347747361,1736093442987,-500.0,8.219e-05,2]
[347747362,1736093442996,-1663.25,8.219e-05,2]
[347747363,1736093443005,-554.81,8.219e-05,2]
[347747364,1736093443015,-1376.83,8.219e-05,2]
[347747365,1736093443024,-768.81,8.219e-05,2]
[347747366,1736093443033,-500.0,8.219e-05,2]
[347747367,1736093443042,-3514.34,8.219e-05,2]
[347747368,1736093443051,-870.76,8.219e-05,2]
[347747369,1736093443061,-375.919903,8.219e-05,2]
[347747370,1736093443070,-500.0,8.219e-05,2]
[347747371,1736093443079,-500.0,8.219e-05,2]
[347747372,1736093443088,-403.4983,8.219e-05,2]
[347747373,1736093443098,-972.86,8.219e-05,2]
[347747374,1736093443107,-500.0,8.219e-05,2]
[347747375,1736093443117,-1212.28,8.219e-05,2]
[347747376,1736093443126,-928.76,8.219e-05,2]
[347747377,1736093443136,-500.0,8.219e-05,2]
[347747378,1736093443145,-500.0,8.219e-05,2]
[347747379,1736093443156,-500.0,8.219e-05,2]
[347747380,1736093443165,-626.28,8.219e-05,2]
[347747381,1736093443174,-1177.81,8.219e-05,2]
[347747382,1736093443183,-500.0,8.219e-05,2]
[347747383,1736093443192,-500.0,8.219e-05,2]
[347747384,1736093443202,-365.25246006,8.219e-05,2]
[347747385,1736093443212,-1032.98,8.219e-05,2]
[347747386,1736093443221,-2723.22,8.219e-05,2]
[347747387,1736093443230,-807.78,8.219e-05,2]
[347747388,1736093443240,-569.16,8.219e-05,2]
[347747389,1736093443249,-500.0,8.219e-05,2]
[347747390,1736093443258,-1463.16,8.219e-05,2]
[347747391,1736093443268,-2820.24,8.219e-05,2]
[347747392,1736093443277,-375.527974,8.219e-05,2]
[347747393,1736093443286,-402.803781,8.219e-05,2]
[347747394,1736093443296,-500.0,8.219e-05,2]
[347747395,1736093443305,-647.44,8.219e-05,2]
[347747396,1736093443314,-586.44,8.219e-05,2]
[347747397,1736093443324,-402.54753878,8.219e-05,2]
[347747398,1736093443334,-625.48,8.219e-05,2]
[347747399,1736093443343,-2040.35,8.219e-05,2]
[347747400,1736093443352,-7531.06,8.219e-05,2]
[347747401,1736093443362,-500.0,8.219e-05,2]
[347747402,1736093443371,-758.75,8.219e-05,2]
[347747403,1736093443380,-440.6188999,8.219e-05,2]
[347747404,1736093443389,-500.0,8.219e-05,2]
[347747405,1736093443399,-2335.63,8.219e-05,2]
[347747406,1736093443412,-500.0,8.219e-05,2]
[347747407,1736093443422,-1840.4,8.219e-05,2]
[347747408,1736093443431,-12370.7710747,8.219e-05,2]
[347747409,1736093443442,-931.19,8.219e-05,2]
[347747410,1736093443452,-803.93,8.219e-05,2]
[347747411,1736093443461,-500.0,8.219e-05,2]
[347747412,1736093443471,-917.79,8.219e-05,2]
[347747413,1736093443480,-500.0,8.219e-05,2]
[347747414,1736093443493,-3520.61,8.219e-05,2]
[347747415,1736093443502,-500.0,8.219e-05,2]
[347747416,1736093443512,-1119.32,8.219e-05,2]
[347747417,1736093443522,-402.22777,8.219e-05,2]
[347747418,1736093443532,-537.63,8.219e-05,2]
[347747419,1736093443543,-500.0,8.219e-05,2]
[347747420,1736093443552,-4019.56,8.219e-05,2]
[347747421,1736093443562,-706.11,8.219e-05,2]
[347747422,1736093443572,-500.0,8.219e-05,2]
[347747423,1736093443581,-717.02,8.219e-05,2]
[347747424,1736093443590,-557.28,8.219e-05,2]
[347747425,1736093443599,-1645.52,8.219e-05,2]
[347747426,1736093443608,-1324.45,8.219e-05,2]
[347747427,1736093443617,-500.0,8.219e-05,2]
[347747428,1736093443627,-164.87,8.219e-05,2]
[347747429,1736093443636,-278.45,8.219e-05,2]
[347747430,1736093443646,-2521.11,8.219e-05,2]
[347747431,1736093443656,-1000.0,8.219e-05,2]
[347747432,1736093443665,-250.0,8.219e-05,2]
[347747433,1736093443675,-988.9,8.219e-05,2]
[347747434,1736093443684,-163.86,8.219e-05,2]
[347747435,1736093443693,-753.08,8.232e-05,2]
[347747436,1736093443703,-420.0,8.294e-05,2]
[347747437,1736093443713,-500.0,8.493e-05,2]
[347747438,1736093443723,-500.0,8.493e-05,2]
[347747439,1736093443732,-500.0,8.493e-05,2]
[347747440,1736093443741,-500.0,8.493e-05,2]
[347747441,1736093443751,-500.0,8.493e-05,2]
[347747442,1736093443760,-500.0,8.493e-05,2]
[347747443,1736093443769,-500.0,8.493e-05,2]
[347747444,1736093443779,-500.0,8.493e-05,2]
[347747445,1736093443788,-311.43480326,8.493e-05,2]
[347747446,1736093443798,-518.61,8.493e-05,2]
[347747447,1736093443807,-170.24,8.493e-05,2]
[347747448,1736093443816,-219.32401316,8.493e-05,2]
[347747449,1736093443826,-500.0,8.493e-05,2]
[347747450,1736093443835,-500.0,8.493e-05,2]
[347747451,1736093443844,-1944.31,8.493e-05,2]
[347747452,1736093443854,-500.0,8.493e-05,2]
[347747453,1736093443863,-500.0,8.493e-05,2]
[347747454,1736093443873,-500.0,8.493e-05,2]
[347747455,1736093443883,-500.0,8.493e-05,2]
[347747456,1736093443892,-500.0,8.493e-05,2]
[347747457,1736093443902,-513.01,8.493e-05,2]
[347747458,1736093443911,-218.60244483,8.493e-05,2]
[347747459,1736093443920,-1116.95,8.493e-05,2]
[347747460,1736093443929,-647.32,8.493e-05,2]
[347747461,1736093443938,-500.0,8.493e-05,2]
[347747462,1736093443947,-500.0,8.493e-05,2]
[347747463,1736093443956,-500.0,8.493e-05,2]
[347747464,1736093443965,-1247.07,8.493e-05,2]
[347747465,1736093443975,-500.0,8.493e-05,2]
[347747466,1736093443984,-500.0,8.493e-05,2]
[347747467,1736093443993,-500.0,8.493e-05,2]
[347747468,1736093444003,-710.57,8.493e-05,2]
[347747469,1736093444012,-785.01,8.493e-05,2]
[347747470,1736093444022,-2074.96,8.493e-05,2]
[347747471,1736093444031,-500.0,8.493e-05,7]
[347747472,1736093444041,-1942.88,8.493e-05,2]
[347747473,1736093444051,-500.0,8.493e-05,2]
[347747474,1736093444060,-500.0,8.493e-05,2]
[347747475,1736093444070,-582.62,8.493e-05,2]
[347747476,1736093444079,-500.0,8.493e-05,2]
[347747477,1736093444089,-5066.49,8.493e-05,2]
[347747478,1736093444099,-1196.95,8.493e-05,2]
[347747479,1736093444111,-500.0,8.493e-05,2]
[347747480,1736093444120,-500.0,8.493e-05,2]
[347747481,1736093444131,-500.0,8.493e-05,2]
[347747482,1736093444139,-651.13,8.493e-05,2]
[347747483,1736093444150,-1012.85,8.493e-05,2]
[347747484,1736093444159,-500.0,8.493e-05,2]
[347747485,1736093444169,-1917.18,8.493e-05,2]
[347747486,1736093444178,-511.08,8.493e-05,2]
[347747487,1736093444189,-766.4,8.493e-05,2]
[347747488,1736093444200,-500.0,8.493e-05,2]
[347747489,1736093444209,-751.14,8.493e-05,2]
[347747490,1736093444219,-500.0,8.493e-05,2]
[347747491,1736093444228,-952.56,8.493e-05,2]
[347747492,1736093444237,-754.41,8.493e-05,2]
[347747493,1736093444246,-1737.28,8.493e-05,2]
[347747494,1736093444255,-500.0,8.493e-05,2]
[347747495,1736093444264,-886.39,8.493e-05,2]
[347747496,1736093444273,-500.0,8.493e-05,2]
[347747497,1736093444283,-500.0,8.493e-05,2]
[347747498,1736093444292,-500.0,8.493e-05,2]
[347747499,1736093444301,-526.36,8.493e-05,2]
[347747500,1736093444310,-737.15,8.493e-05,2]
[347747501,1736093444319,-3524.74,8.493e-05,2]
[347747502,1736093444328,-500.0,8.493e-05,2]
[347747503,1736093444338,-500.0,8.493e-05,2]
[347747504,1736093444347,-500.0,8.493e-05,2]
[347747505,1736093444356,-500.0,8.493e-05,2]
[347747506,1736093444366,-549.92,8.493e-05,2]
[347747507,1736093444376,-500.0,8.493e-05,2]
[347747508,1736093444386,-761.43,8.493e-05,2]
[347747509,1736093444395,-500.0,8.493e-05,2]
[347747510,1736093444406,-500.0,8.493e-05,2]
[347747511,1736093444416,-500.0,8.493e-05,2]
[347747512,1736093444425,-642.49,8.493e-05,2]
[347747513,1736093444435,-562.21,8.493e-05,2]
[347747514,1736093444444,-735.44,8.493e-05,2]
[347747515,1736093444455,-500.0,8.493e-05,2]
[347747516,1736093444464,-500.0,8.493e-05,2]
[347747517,1736093444474,-500.0,8.493e-05,2]
[347747518,1736093444486,-500.0,8.493e-05,2]
[347747519,1736093444496,-3187.24,8.493e-05,2]
[347747520,1736093444505,-882.75,8.493e-05,2]
[347747521,1736093444515,-546.34,8.493e-05,2]
[347747522,1736093444525,-520.15,8.493e-05,2]
[347747523,1736093444535,-500.0,8.493e-05,2]
[347747524,1736093444545,-649.07,8.493e-05,2]
[347747525,1736093444554,-844.88,8.493e-05,2]
[347747526,1736093444565,-2003.22,8.493e-05,2]
[347747527,1736093444574,-500.0,8.493e-05,2]
[347747528,1736093444583,-774.09,8.493e-05,2]
[347747529,1736093444593,-500.0,8.493e-05,2]
[347747530,1736093444602,-528.73,8.493e-05,2]
[347747531,1736093444612,-852.93,8.493e-05,2]
[347747532,1736093444621,-500.0,8.493e-05,2]
[347747533,1736093444630,-500.0,8.493e-05,2]
[347747534,1736093444639,-810.2,8.493e-05,2]
[347747535,1736093444650,-829.01,8.493e-05,2]
[347747536,1736093444659,-531.05,8.493e-05,2]
[347747537,1736093444668,-682.3,8.493e-05,2]
[347747538,1736093444678,-549.67,8.493e-05,2]
[347747539,1736093444687,-2055.76,8.493e-05,2]
[347747540,1736093444696,-500.0,8.493e-05,2]
[347747541,1736093444705,-543.01,8.493e-05,2]
[347747542,1736093444715,-2363.08,8.493e-05,2]
[347747543,1736093444725,-500.0,8.493e-05,2]
[347747544,1736093444734,-500.0,8.493e-05,2]
[347747545,1736093444743,-500.0,8.493e-05,2]
[347747546,1736093444753,-500.0,8.493e-05,2]
[347747547,1736093444762,-500.0,8.493e-05,2]
[347747548,1736093444771,-500.0,8.493e-05,2]
[347747549,1736093444780,-715.52,8.493e-05,2]
[347747550,1736093444790,-608.96,8.493e-05,2]
[347747551,1736093444799,-500.0,8.493e-05,2]
[347747552,1736093444808,-500.0,8.493e-05,2]
[347747553,1736093444818,-500.0,8.493e-05,2]
[347747554,1736093444827,-511.54,8.493e-05,2]
[347747555,1736093444837,-2036.65,8.493e-05,2]
[347747556,1736093444848,-816.37,8.493e-05,2]
[347747557,1736093444857,-547.7,8.493e-05,2]
[347747558,1736093444866,-710.61,8.493e-05,2]
[347747559,1736093444876,-500.0,8.493e-05,2]
[347747560,1736093444885,-500.0,8.493e-05,2]
[347747561,1736093444895,-500.0,8.493e-05,2]
[347747562,1736093444906,-540.03,8.493e-05,2]
[347747563,1736093444915,-560.43,8.493e-05,2]
[347747564,1736093444925,-587.66,8.493e-05,2]
[347747565,1736093444935,-500.0,8.493e-05,2]
[347747566,1736093444943,-1095.6,8.493e-05,2]
[347747567,1736093444953,-500.0,8.493e-05,2]
[347747568,1736093444962,-946.46,8.493e-05,2]
[347747569,1736093444971,-584.75,8.493e-05,2]
[347747570,1736093444980,-500.0,8.493e-05,2]
[347747571,1736093444989,-777.09,8.493e-05,2]
[347747572,1736093444998,-500.0,8.493e-05,2]
[347747573,1736093445007,-500.0,8.493e-05,2]
[347747574,1736093445017,-500.0,8.493e-05,2]
[347747575,1736093445027,-500.0,8.493e-05,2]
[347747576,1736093445036,-500.0,8.493e-05,2]
[347747577,1736093445046,-500.0,8.493e-05,2]
[347747578,1736093445055,-500.0,8.493e-05,2]
[347747579,1736093445065,-3034.01,8.493e-05,2]
[347747580,1736093445075,-500.0,8.493e-05,2]
[347747581,1736093445084,-660.74,8.493e-05,2]
[347747582,1736093445153,-836.67,8.493e-05,2]
[347747583,1736093445162,-500.0,8.493e-05,2]
[347747584,1736093445171,-3701.46,8.493e-05,2]
[347747585,1736093445180,-645.35,8.493e-05,2]
[347747586,1736093445189,-1046.1,8.493e-05,2]
[347747587,1736093445198,-941.56,8.493e-05,2]
[347747589,1736093445207,-500.0,8.493e-05,2]
[347747590,1736093445216,-500.0,8.493e-05,2]
[347747591,1736093445225,-568.91,8.493e-05,2]
[347747592,1736093445234,-833.84,8.493e-05,2]
[347747593,1736093445243,-820.61,8.493e-05,2]
[347747594,1736093445252,-582.64,8.493e-05,2]
[347747596,1736093445262,-621.13,8.493e-05,2]
[347747598,1736093445271,-308.93546172,8.493e-05,2]
[347747600,1736093445280,-606.5,8.493e-05,2]
[347747601,1736093445289,-500.0,8.493e-05,2]
[347747603,1736093445298,-501.63,8.493e-05,2]
[347747604,1736093445307,-500.0,8.493e-05,2]
[347747606,1736093445317,-500.0,8.493e-05,2]
[347747607,1736093445327,-615.11,8.493e-05,2]
[347747608,1736093445336,-649.76,8.493e-05,2]
[347747609,1736093445345,-1688.62,8.493e-05,2]
[347747610,1736093445354,-500.0,8.493e-05,2]
[347747611,1736093445363,-500.0,8.493e-05,2]
[347747612,1736093445371,-3762.06,8.493e-05,2]
[347747614,1736093445380,-868.56,8.493e-05,2]
[347747615,1736093445389,-500.0,8.493e-05,2]
[347747616,1736093445398,-1145.74,8.493e-05,2]
[347747617,1736093445408,-525.35,8.493e-05,2]
[347747618,1736093445417,-574.53,8.493e-05,2]
[347747619,1736093445427,-500.0,8.493e-05,2]
[347747620,1736093445436,-702.61,8.493e-05,2]
[347747621,1736093445445,-898.96,8.493e-05,2]
[347747622,1736093445455,-553.77,8.493e-05,2]
[347747623,1736093445464,-1387.22,8.493e-05,2]
[347747624,1736093445473,-574.79,8.493e-05,2]
[347747625,1736093445484,-549.17,8.493e-05,2]
[347747626,1736093445498,-729.47,8.493e-05,2]
[347747627,1736093445507,-500.0,8.493e-05,2]
[347747628,1736093445516,-500.0,8.493e-05,2]
[347747629,1736093445526,-910.32,8.493e-05,2]
[347747630,1736093445536,-970.62,8.493e-05,2]
[347747631,1736093445546,-500.0,8.493e-05,2]
[347747632,1736093445555,-500.0,8.493e-05,2]
[347747633,1736093445567,-527.29,8.493e-05,2]
[347747634,1736093445576,-500.0,8.493e-05,2]
[347747635,1736093445585,-500.0,8.493e-05,2]
[347747636,1736093445595,-500.0,8.493e-05,2]
[347747637,1736093445604,-701.89,8.493e-05,2]
[347747638,1736093445613,-676.38,8.493e-05,2]
[347747639,1736093445622,-879.45,8.493e-05,2]
[347747640,1736093445632,-504.21,8.493e-05,2]
[347747641,1736093445641,-919.5,8.493e-05,2]
[347747642,1736093445650,-652.07,8.493e-05,2]
[347747643,1736093445661,-500.0,8.493e-05,2]
[347747644,1736093445670,-500.0,8.493e-05,2]
[347747645,1736093445681,-500.0,8.493e-05,2]
[347747646,1736093445691,-899.28,8.493e-05,2]
[347747647,1736093445700,-605.08,8.493e-05,2]
[347747648,1736093445709,-878.43,8.493e-05,2]
[347747649,1736093445718,-867.42,8.493e-05,2]
[347747650,1736093445727,-1210.23,8.493e-05,2]
[347747651,1736093445737,-500.0,8.493e-05,2]
[347747653,1736093445746,-1086.36,8.493e-05,2]
[347747655,1736093445756,-676.02,8.493e-05,2]
[347747657,1736093445765,-767.55,8.493e-05,2]
[347747659,1736093445774,-853.53,8.493e-05,2]
[347747660,1736093445783,-500.0,8.493e-05,2]
[347747661,1736093445792,-500.0,8.493e-05,2]
[347747662,1736093445802,-500.0,8.493e-05,2]
[347747663,1736093445812,-705.93,8.493e-05,2]
[347747664,1736093445821,-500.0,8.493e-05,2]
[347747665,1736093445830,-500.0,8.493e-05,2]
[347747666,1736093445839,-914.97,8.493e-05,2]
[347747667,1736093445848,-500.0,8.493e-05,2]
[347747668,1736093445857,-675.73,8.493e-05,2]
[347747669,1736093445867,-672.42,8.493e-05,2]
[347747670,1736093445876,-727.18,8.493e-05,2]
[347747671,1736093445885,-500.0,8.493e-05,2]
[347747672,1736093445895,-500.0,8.493e-05,2]
[347747673,1736093445905,-567.84,8.493e-05,2]
[347747674,1736093445914,-500.0,8.493e-05,2]
[347747675,1736093445923,-552.49,8.493e-05,2]
[347747676,1736093445932,-500.0,8.493e-05,2]
[347747677,1736093445941,-764.16,8.493e-05,2]
[347747678,1736093445951,-543.8,8.493e-05,2]